bitfinex-derivatives/quotes_SOLF0:USTF0_20250227
["timestamp","ask_amount","ask_price","bid_price","bid_amount"]
[1740670130381,12.56659975,138.5,138.45,0.0522869]
[1740670131276,7.8219,138.49,138.45,0.0522869]
[1740670131468,11.7381,138.49,138.45,0.0522869]
[1740670134381,7.6989,138.49,138.45,0.0522869]
[1740670134581,7.6989,138.49,138.45,7.2811869]
[1740670135385,12.56659975,138.5,138.45,7.2811869]
[1740670136973,12.56659975,138.5,138.46,7.2283]
[1740670137579,12.56659975,138.5,138.45,7.2812869]
[1740670137775,12.56659975,138.5,138.45,0.0522869]
[1740670138175,11.6502,138.49,138.45,0.0522869]
[1740670138692,11.6502,138.49,138.38,8.0236]
[1740670139580,11.6502,138.49,138.4,9.9408752]
[1740670139783,0.05282177,138.46,138.43,0.04870134]
[1740670140882,7.28142177,138.46,138.4,17.1723752]
[1740670141279,0.05282177,138.46,138.41,7.231]
[1740670141477,0.05282177,138.46,138.4,9.9408752]
[1740670141883,0.05282177,138.46,138.45,7.2291]
[1740670143091,0.05282177,138.46,138.42,0.05178563]
[1740670144189,0.05282177,138.46,138.45,7.2291]
[1740670144885,0.05282177,138.46,138.42,0.05178563]
[1740670146183,0.05282177,138.46,138.39,40.0285523]
[1740670146391,3.8556,138.49,138.39,40.0285523]
[1740670147290,0.04868157,138.45,138.43,0.05214294]
[1740670147587,196.44,138.44,138.39,40.0285523]
[1740670147795,20.0846,138.43,138.39,40.0285523]
[1740670148292,20.0846,138.43,138.39,15.4648523]
[1740670148490,20.0846,138.43,138.39,3.7053523]
[1740670148690,20.0846,138.43,138.4,0.04580738]
[1740670149293,27.3148,138.43,138.4,0.04580738]
[1740670149488,20.0846,138.43,138.4,0.04580738]
[1740670149695,7.2312,138.41,138.4,0.04580738]
[1740670150096,21.68,138.41,138.4,0.04580738]
[1740670152895,28.9112,138.41,138.4,0.04580738]
[1740670153296,21.68,138.41,138.32,79.51748028]
[1740670153497,16.3581,138.43,138.32,79.51748028]
[1740670153705,1.32925775,138.42,138.32,79.51748028]
[1740670153900,1.32925147,138.41,138.32,79.51748028]
[1740670154202,1.32925147,138.4,138.24,79.51748028]
[1740670154405,0.05119204,138.38,138.35,0.05353039]
[1740670154607,7.2345,138.35,138.31,7.2364]
[1740670154804,12.52,138.34,138.24,79.51748028]
[1740670155005,12.52,138.34,138.32,7.28108214]
[1740670155206,12.52,138.34,138.24,79.51748028]
[1740670155407,12.56780122,138.34,138.32,0.04657602]
[1740670155605,12.52,138.34,138.31,7.2361]
[1740670155808,12.56708656,138.34,138.32,0.05376308]
[1740670156210,12.56708656,138.34,138.32,7.28966308]
[1740670156409,12.56708656,138.34,138.32,0.05376308]
[1740670156610,0.04708656,138.34,138.32,0.05376308]
[1740670156809,12.56708656,138.34,138.32,0.05376308]
[1740670157214,12.56708656,138.34,138.33,7.2354]
[1740670157511,6.37348656,138.34,138.33,7.2354]
[1740670157710,12.52,138.39,138.32,0.05376308]
[1740670157911,12.52,138.39,138.24,1.17441653]
[1740670158108,3.8381,138.43,138.36,7.2335]
[1740670158312,12.52,138.42,138.23,7.9719]
[1740670158506,12.52,138.42,138.26,14.4777]
[1740670158703,0.05058839,138.34,138.31,0.0513794]
[1740670158910,12.52,138.43,138.27,1.17306878]
[1740670159108,12.52,138.43,138.28,3.8528]
[1740670159910,12.52,138.43,138.31,7.2361]
[1740670160111,0.04792627,138.37,138.34,0.04812601]
[1740670160307,7.2309,138.42,138.31,7.2364]
[1740670160505,12.52,138.43,138.34,0.05487272]
[1740670160711,0.05181188,138.37,138.34,0.05487272]
[1740670160912,7.2319,138.4,138.29,7.237]
[1740670161220,7.2319,138.4,138.34,0.05412667]
[1740670161418,0.04713678,138.36,138.34,0.05412667]
[1740670161917,12.56713678,138.36,138.34,0.05412667]
[1740670162314,0.04713678,138.36,138.34,0.05412667]
[1740670162913,12.52,138.42,138.34,0.05412667]
[1740670163820,7.2321,138.4,138.34,0.05412667]
[1740670164018,12.52,138.42,138.34,0.05412667]
[1740670164317,0.05355551,138.39,138.34,0.05412667]
[1740670164808,0.05355551,138.39,138.34,7.28862667]
[1740670165814,0.05355551,138.39,138.34,0.05412667]
[1740670166521,0.05355551,138.39,138.34,7.28862667]
[1740670167218,0.05355551,138.39,138.34,0.05412667]
[1740670171328,0.05355551,138.39,138.34,7.28862667]
[1740670171620,7.28595551,138.39,138.34,7.28862667]
[1740670171813,0.05355551,138.39,138.34,0.05412667]
[1740670172018,3.9449,138.38,138.34,0.05412667]
[1740670173120,0.05355551,138.39,138.34,0.05412667]
[1740670173729,0.05355551,138.39,138.35,7.234]
[1740670174726,0.05355551,138.39,138.34,0.05412667]
[1740670175230,7.2331,138.38,138.34,0.05412667]
[1740670175426,0.05355551,138.39,138.34,0.05412667]
[1740670177127,0.05355551,138.39,138.35,7.234]
[1740670177723,0.05355551,138.39,138.34,7.28882667]
[1740670178230,7.28605551,138.39,138.34,7.28882667]
[1740670178430,0.05355551,138.39,138.34,7.28882667]
[1740670178631,0.05355551,138.39,138.34,0.05412667]
[1740670179131,0.05355551,138.39,138.34,7.28872667]
[1740670179332,0.05355551,138.39,138.34,0.05412667]
[1740670179530,7.28585551,138.39,138.34,0.05412667]
[1740670179726,0.05355551,138.39,138.34,0.05412667]
[1740670180034,7.2344,138.35,138.34,0.05412667]
[1740670180327,19.7544,138.35,138.34,0.05412667]
[1740670180532,41.4344,138.35,138.34,0.05412667]
[1740670180720,19.7544,138.35,138.34,0.05412667]
[1740670185533,7.236,138.32,138.26,3.8989]
[1740670185934,16.2862,138.35,138.26,3.8989]
[1740670186332,16.2862,138.35,138.29,7.2372]
[1740670186732,0.05285844,138.33,138.31,0.04946092]
[1740670186931,7.2362,138.32,138.31,0.04946092]
[1740670190133,28.9162,138.32,138.31,0.04946092]
[1740670190439,7.2362,138.32,138.31,0.04946092]
[1740670191027,28.9162,138.32,138.31,0.04946092]
[1740670191231,21.68,138.32,138.27,7.2381]
[1740670191433,0.05285844,138.33,138.19,11.6741]
[1740670191734,16.2862,138.35,138.19,11.6741]
[1740670191735,7.2389,138.27,138.19,11.6741]
[1740670191935,12.52,138.26,138.24,7.2398]
[1740670192334,12.57408579,138.26,138.24,7.29389102]
[1740670192739,12.57408579,138.26,138.24,0.05409102]
[1740670194739,12.57408579,138.26,138.25,7.2396]
[1740670195038,0.18388579,138.26,138.25,7.2396]
[1740670195235,0.18388579,138.26,138.24,0.05409102]
[1740670196143,0.18388579,138.26,138.24,7.29419102]
[1740670196344,0.18388579,138.26,138.24,0.05409102]
[1740670196544,0.05408579,138.26,138.25,7.2396]
[1740670196842,0.05408579,138.26,138.24,0.05409102]
[1740670198340,0.05408579,138.26,138.24,7.29399102]
[1740670198645,0.05408579,138.26,138.24,0.05409102]
[1740670200444,196.72,138.25,138.24,0.05409102]
[1740670201838,1.12794073,138.29,138.24,0.05409102]
[1740670202043,12.52,138.32,138.24,0.05409102]
[1740670202352,12.52,138.33,138.24,0.05409102]
[1740670202544,12.52,138.33,138.17,14.4874]
[1740670202943,12.52,138.33,138.18,1.17692007]
[1740670203146,0.05161711,138.26,138.25,7.2396]
[1740670203349,12.52,138.33,138.24,0.04991824]
[1740670203541,12.52,138.33,138.13,1.17803997]
[1740670203750,7.2395,138.26,138.12,17.54289895]
[1740670203951,12.52,138.25,138.09,31.04495025]
[1740670204248,12.52,138.25,138.1,2.6261015]
[1740670204449,0.0499308,138.18,138.16,0.04590309]
[1740670204639,0.0499308,138.18,138.17,7.2438]
[1740670204847,0.05304798,138.18,138.16,0.05079096]
[1740670205045,192.0,138.31,138.16,21.77079096]
[1740670205247,12.52,138.27,138.22,7.2412]
[1740670205448,12.52,138.27,138.14,30.02564139]
[1740670205840,12.52,138.27,138.21,7.2414]
[1740670206148,12.52,138.27,138.14,30.02564139]
[1740670206350,0.05366469,138.25,138.23,0.05515724]
[1740670206645,0.05114077,138.25,138.23,0.05048447]
[1740670207043,0.05114077,138.25,138.14,30.02564139]
[1740670207241,4.0973,138.26,138.14,30.02564139]
[1740670207452,7.241,138.23,138.15,7.2448]
[1740670207845,3.8686,138.25,138.15,7.2448]
[1740670208047,3.8686,138.25,138.14,30.02564139]
[1740670208245,0.05534327,138.21,138.19,0.0459964]
[1740670208447,0.05534327,138.21,138.2,7.2422]
[1740670208752,12.52,138.24,138.19,21.7459964]
[1740670208948,188.02456595,138.28,138.24,7.24]
[1740670209148,188.02456595,138.28,138.15,3.8992]
[1740670209551,188.02456595,138.28,138.23,7.2402]
[1740670209745,12.52,138.28,138.15,3.8992]
[1740670209950,0.04967315,138.23,138.2,0.04646519]
[1740670210151,12.52,138.28,138.23,7.2404]
[1740670210351,12.52,138.29,138.23,7.2404]
[1740670210553,12.52,138.29,138.14,30.02564139]
[1740670211357,9.481e-05,138.23,138.2,0.04668489]
[1740670211657,12.52,138.31,138.16,1.17827514]
[1740670212357,12.52,138.31,138.17,14.4874]
[1740670212553,3.416e-05,138.25,138.22,0.05282307]
[1740670212761,12.52,138.31,138.29,7.2372]
[1740670212953,12.52,138.31,138.18,1.17755128]
[1740670212954,196.74,138.34,138.19,12.52]
[1740670213160,196.74,138.34,138.19,27.0054]
[1740670213357,196.74,138.34,138.2,1.1772505]
[1740670213758,8.1e-05,138.28,138.26,0.0480452]
[1740670213953,8.1e-05,138.28,138.27,7.2385]
[1740670214157,196.74,138.34,138.26,21.7480452]
[1740670214356,196.74,138.34,138.3,7.237]
[1740670214560,196.74,138.34,138.19,222.0054]
[1740670214759,196.74,138.34,138.2,1.17844229]
[1740670215053,0.0521657,138.28,138.25,0.04610364]
[1740670215360,196.74,138.34,138.19,195.0]
[1740670215551,0.04666371,138.28,138.25,0.04559232]
[1740670215755,196.74,138.34,138.21,4.0849]
[1740670216059,0.04637401,138.28,138.25,0.0512204]
[1740670216248,12.52,138.28,138.21,4.0849]
[1740670216653,12.56785082,138.28,138.25,0.04900431]
[1740670217459,12.56785082,138.28,138.25,7.28840431]
[1740670217660,12.56785082,138.28,138.25,0.04900431]
[1740670217860,12.56785082,138.28,138.26,7.2387]
[1740670218261,196.74,138.34,138.25,0.04900431]
[1740670218561,12.52,138.33,138.28,7.2378]
[1740670219560,0.05323182,138.32,138.29,0.04716695]
[1740670220157,0.05323182,138.32,138.21,4.0849]
[1740670220459,12.52,138.33,138.21,11.3263]
[1740670220655,7.2384,138.28,138.21,7.2414]
[1740670220856,12.52,138.33,138.19,30.02564139]
[1740670221051,7.2416,138.22,138.19,30.02564139]
[1740670221362,12.52,138.21,138.19,30.02564139]
[1740670221559,12.52,138.2,138.19,5.30739963]
[1740670221752,12.52,138.2,138.18,66.24677991]
[1740670222158,12.52,138.2,138.18,46.12597991]
[1740670222354,12.52,138.19,138.14,46.12597991]
[1740670222562,196.7,138.23,138.14,46.12597991]
[1740670222860,0.05509142,138.2,138.17,7.29704559]
[1740670223658,0.05509142,138.2,138.17,0.05334559]
[1740670228971,7.29749142,138.2,138.17,0.05334559]
[1740670229172,0.05509142,138.2,138.17,0.05334559]
[1740670229578,12.52,138.19,138.17,0.05334559]
[1740670230175,0.05509142,138.2,138.17,0.05334559]
[1740670230176,12.57509142,138.2,138.17,0.05334559]
[1740670230974,0.05509142,138.2,138.19,7.2427]
[1740670231176,12.57509142,138.2,138.17,0.05334559]
[1740670232078,12.57509142,138.2,138.17,7.29684559]
[1740670232373,12.57509142,138.2,138.17,0.05334559]
[1740670232879,0.05509142,138.2,138.17,0.05334559]
[1740670233071,196.7,138.23,138.17,0.05334559]
[1740670234175,0.04995548,138.21,138.17,0.05334559]
[1740670235377,7.2423,138.2,138.17,0.05334559]
[1740670235573,0.04995548,138.21,138.17,0.05334559]
[1740670236978,12.52,138.2,138.17,0.05334559]
[1740670237478,12.52,138.2,138.17,0.00204559]
[1740670237681,7.2433,138.18,138.17,0.00204559]
[1740670238374,7.2429,138.19,138.17,0.00204559]
[1740670238574,12.52,138.2,138.17,0.00204559]
[1740670238973,192.0,138.19,138.17,0.00204559]
[1740670239685,12.52,138.2,138.17,0.00204559]
[1740670241377,7.29185548,138.21,138.17,0.00204559]
[1740670241378,0.04995548,138.21,138.17,0.00204559]
[1740670243881,12.52,138.2,138.17,0.00204559]
[1740670244376,7.2433,138.18,138.17,0.00204559]
[1740670246275,7.2428,138.19,138.17,0.00204559]
[1740670246676,19.7626,138.2,138.17,0.00204559]
[1740670246877,12.52,138.2,138.17,0.00204559]
[1740670247283,7.243,138.19,138.17,0.00204559]
[1740670247890,19.7625,138.2,138.17,0.00204559]
[1740670248188,12.52,138.2,138.17,0.00204559]
[1740670249587,19.7625,138.2,138.17,0.00204559]
[1740670249790,12.52,138.2,138.17,0.00204559]
[1740670252092,7.2428,138.19,138.17,0.00204559]
[1740670252280,12.52,138.2,138.17,0.00204559]
[1740670253187,12.56995548,138.21,138.17,0.00204559]
[1740670253388,12.56995548,138.21,138.17,7.24554559]
[1740670253787,12.56995548,138.21,138.17,0.00204559]
[1740670253989,0.04995548,138.21,138.17,0.00204559]
[1740670254691,0.04995548,138.21,138.17,7.24564559]
[1740670254988,0.04995548,138.21,138.17,0.00204559]
[1740670256186,7.29195548,138.21,138.17,0.00204559]
[1740670256491,0.04995548,138.21,138.17,0.00204559]
[1740670256789,7.2425,138.2,138.17,0.00204559]
[1740670257093,0.04995548,138.21,138.17,0.00204559]
[1740670257593,7.2433,138.18,138.17,0.00204559]
[1740670259994,28.9633,138.18,138.17,0.00204559]
[1740670260291,7.2433,138.18,138.17,0.00204559]
[1740670260790,0.04995548,138.21,138.17,0.00204559]
[1740670261492,7.2433,138.18,138.17,0.00204559]
[1740670261691,0.04995548,138.21,138.17,0.00204559]
[1740670261893,7.2425,138.2,138.17,0.00204559]
[1740670262284,0.04995548,138.21,138.17,0.00204559]
[1740670262484,7.243,138.19,138.17,0.00204559]
[1740670262685,0.04995548,138.21,138.17,0.00204559]
[1740670262891,7.2433,138.18,138.17,0.00204559]
[1740670263288,28.9633,138.18,138.17,0.00204559]
[1740670263695,30.29468794,138.18,138.17,0.00204559]
[1740670264497,7.2477,138.1,138.06,11.323]
[1740670264798,12.5,138.09,138.06,11.323]
[1740670265185,12.5,138.09,138.06,4.0737]
[1740670265391,12.5,138.09,138.07,7.2489]
[1740670265588,12.55402457,138.09,138.06,0.05055554]
[1740670265792,7.2485,138.08,138.06,0.05055554]
[1740670266095,12.55402457,138.09,138.06,0.05055554]
[1740670266397,12.55402457,138.09,138.06,7.30005554]
[1740670266699,12.55402457,138.09,138.06,0.05055554]
[1740670267294,7.2488,138.08,138.06,0.05055554]
[1740670269493,7.249,138.07,138.06,0.05055554]
[1740670271295,12.55402457,138.09,138.06,0.05055554]
[1740670271493,0.05402457,138.09,138.06,0.05055554]
[1740670271694,0.05402457,138.09,138.08,7.2485]
[1740670271892,196.92,138.11,138.07,7.8574]
[1740670272091,159.7524,138.11,138.07,7.8574]
[1740670272292,12.52,138.13,138.07,29.5774]
[1740670272497,12.52,138.13,138.07,7.8574]
[1740670272797,12.52,138.13,138.11,7.2466]
[1740670272995,12.52,138.13,138.07,7.8574]
[1740670273296,12.52,138.13,138.11,0.05236272]
[1740670273297,12.57544853,138.13,138.11,0.05236272]
[1740670276103,19.82144853,138.13,138.11,0.05236272]
[1740670276400,12.57544853,138.13,138.11,0.05236272]
[1740670277896,0.05544853,138.13,138.11,0.05236272]
[1740670278291,0.05544853,138.13,138.12,7.2464]
[1740670278699,209.5,138.19,138.12,21.72]
[1740670279002,209.5,138.19,138.08,3.7822]
[1740670279799,0.05075084,138.15,138.12,0.04742447]
[1740670280005,209.5,138.19,138.14,7.2451]
[1740670280305,209.5,138.19,138.08,3.7822]
[1740670280502,209.5,138.19,138.15,7.2445]
[1740670280701,209.5,138.19,138.08,3.7822]
[1740670281204,0.04691241,138.15,138.12,0.04915112]
[1740670281594,0.04691241,138.15,138.14,7.2454]
[1740670282106,209.5,138.19,138.12,0.04915112]
[1740670282700,209.5,138.19,138.14,7.245]
[1740670282899,209.5,138.19,138.12,0.04915112]
[1740670283095,209.5,138.19,138.15,7.2445]
[1740670283398,0.04676219,138.18,138.16,0.053105]
[1740670283603,209.5,138.19,138.08,3.7822]
[1740670283796,0.05475017,138.18,138.16,0.05516028]
[1740670284003,209.5,138.19,138.08,3.7822]
[1740670284200,0.05012404,138.18,138.17,7.2438]
[1740670284503,197.0,138.19,138.08,18.2785]
[1740670284699,197.0542588,138.19,138.16,7.244]
[1740670284905,0.04868888,138.15,138.12,0.05138729]
[1740670285103,197.0,138.19,138.08,18.2785]
[1740670285308,197.0,138.19,138.18,7.2433]
[1740670285604,188.05508363,138.27,138.08,198.7822]
[1740670285605,12.5,138.23,138.08,198.7822]
[1740670286103,12.5,138.25,138.11,14.4935]
[1740670286304,0.05230038,138.17,138.14,0.05118216]
[1740670286505,12.5,138.25,138.14,0.05118216]
[1740670287008,12.5,138.25,138.08,198.7822]
[1740670287202,12.5,138.25,138.09,1.18293365]
[1740670287402,7.2403,138.24,138.16,7.2442]
[1740670287601,12.5,138.25,138.16,0.05462617]
[1740670287806,12.5,138.25,138.09,1.18307646]
[1740670288107,19.7396,138.25,138.19,0.04948243]
[1740670288296,12.5,138.25,138.16,0.04763941]
[1740670288502,12.5,138.25,138.09,1.18307646]
[1740670288699,12.5,138.25,138.19,0.05013338]
[1740670288902,12.5,138.25,138.08,198.7822]
[1740670289108,12.5,138.25,138.21,0.04895244]
[1740670289406,12.5,138.25,138.22,0.05402439]
[1740670289607,7.2401,138.24,138.17,7.2436]
[1740670289807,12.5,138.25,138.22,0.05311604]
[1740670290008,7.2413,138.22,138.08,198.7822]
[1740670290208,12.5,138.25,138.22,0.04670373]
[1740670290405,12.5,138.25,138.08,198.7822]
[1740670290606,7.242,138.21,138.08,198.7822]
[1740670290804,12.5,138.25,138.08,198.7822]
[1740670291603,12.5,138.25,138.15,0.05442811]
[1740670291604,0.04667574,138.18,138.15,0.05442811]
[1740670291809,12.5,138.17,138.1,7.2471]
[1740670292014,12.5,138.17,138.15,0.0485752]
[1740670292313,19.7438,138.17,138.15,0.04974047]
[1740670292514,12.5473196,138.17,138.15,0.04974047]
[1740670292916,196.86,138.16,138.08,3.7822]
[1740670293209,200.8688,138.16,138.05,25.59682]
[1740670293716,1.33162501,138.15,138.05,25.59682]
[1740670293915,7.2483,138.09,138.05,25.59682]
[1740670294119,12.5,138.08,138.05,25.59682]
[1740670294311,12.5,138.08,138.06,0.04700098]
[1740670294711,12.55477398,138.08,138.06,0.04700098]
[1740670295211,12.5,138.12,138.06,0.04700098]
[1740670295413,12.5,138.12,138.06,3.98810098]
[1740670295619,12.5,138.12,138.06,3.9411]
[1740670296415,0.04272856,138.1,138.08,0.05532268]
[1740670301211,0.04272856,138.1,138.08,7.30372268]
[1740670301417,0.04272856,138.1,138.08,0.05532268]
[1740670302813,0.04272856,138.1,138.05,25.59682]
[1740670303011,7.249,138.07,138.05,25.59682]
[1740670303211,3.8826,138.09,138.05,25.59682]
[1740670303625,7.2496,138.06,138.05,25.59682]
[1740670304418,0.05433415,138.07,138.01,7.252]
[1740670304615,7.2501,138.05,138.01,7.252]
[1740670304815,12.5,138.04,138.01,7.252]
[1740670305023,7.2511,138.03,137.97,3.9308]
[1740670305419,7.2511,138.03,137.99,7.2529]
[1740670305613,0.04650566,138.01,137.99,7.30344298]
[1740670306020,0.04650566,138.01,138.0,7.2527]
[1740670306217,0.04650566,138.01,137.99,0.05054298]
[1740670306618,0.04650566,138.01,138.0,7.2527]
[1740670306920,0.04650566,138.01,137.99,0.05054298]
[1740670310221,7.29880566,138.01,137.99,0.05054298]
[1740670310424,0.04650566,138.01,137.99,0.05054298]
[1740670310822,7.29900566,138.01,137.99,0.05054298]
[1740670311325,7.2527,138.0,137.99,0.05054298]
[1740670311622,0.04650566,138.01,137.99,0.05054298]
[1740670311815,7.2527,138.0,137.99,0.05054298]
[1740670312814,7.2533,137.99,137.94,7.2557]
[1740670313213,12.612,138.04,137.91,7.502]
[1740670313418,7.2524,138.01,137.96,7.2544]
[1740670313613,12.612,138.04,137.91,7.502]
[1740670313815,0.05306572,137.99,137.96,0.04894815]
[1740670315225,0.05306572,137.99,137.97,7.2542]
[1740670315429,0.05306572,137.99,137.96,0.04894815]
[1740670315921,196.96,138.05,137.96,0.04894815]
[1740670316126,12.5,138.04,137.91,7.502]
[1740670316324,12.5,138.04,137.99,7.2532]
[1740670316524,12.5,138.04,137.91,7.502]
[1740670316919,12.5,138.04,137.91,22.0167]
[1740670317123,0.0526191,137.99,137.96,0.0542308]
[1740670317426,12.5,138.04,138.02,7.2514]
[1740670318025,12.5,138.04,137.91,202.502]
[1740670318225,196.96,138.05,138.03,7.2508]
[1740670318520,196.96,138.05,137.96,0.05199692]
[1740670318827,196.96,138.05,138.04,7.2506]
[1740670319224,196.96,138.05,137.94,14.5116]
[1740670319528,0.04412679,138.01,137.98,0.04957171]
[1740670319730,196.96,138.05,137.98,0.04957171]
[1740670322327,7.6388,138.04,137.98,0.04957171]
[1740670323028,12.5,138.03,137.99,7.253]
[1740670323222,12.5,138.03,137.98,0.04957171]
[1740670323423,196.96,138.05,137.98,0.04957171]
[1740670323625,196.96,138.05,138.03,7.251]
[1740670323826,196.96,138.05,137.99,7.9411]
[1740670324230,188.28786902,138.09,138.03,0.04676058]
[1740670324631,12.5,138.12,138.03,0.04676058]
[1740670325030,12.5,138.12,137.99,7.9411]
[1740670325225,12.5,138.12,138.06,0.05160455]
[1740670325926,1.33187486,138.11,137.91,195.0]
[1740670326122,1.33187486,138.1,137.92,4.0164]
[1740670326329,1.33187486,138.09,137.92,4.0164]
[1740670326528,1.33187486,138.11,137.92,4.0164]
[1740670326728,1.33187486,138.1,137.92,4.0164]
[1740670326924,7.2529,138.0,137.92,4.0164]
[1740670327128,12.5,137.99,137.92,4.0164]
[1740670327333,12.5,137.98,137.95,0.04859329]
[1740670327634,0.05160455,137.97,137.95,0.04859329]
[1740670329637,209.58,138.02,137.97,7.254]
[1740670330038,209.58,138.02,137.93,7.6918]
[1740670330841,209.58,138.02,137.96,0.0520944]
[1740670333739,3.8753,138.01,137.96,0.0520944]
[1740670334254,7.9809,138.0,137.96,0.0520944]
[1740670334550,7.2536,137.99,137.96,0.0520944]
[1740670334852,7.9809,138.0,137.96,0.0520944]
[1740670334853,15.2337,138.0,137.96,0.0520944]
[1740670335149,7.9809,138.0,137.96,0.0520944]
[1740670335847,209.58,138.02,137.96,0.0520944]
[1740670336449,197.1,138.11,137.96,0.0520944]
[1740670336644,12.5,138.1,137.96,0.0520944]
[1740670336848,12.5,138.1,138.02,0.05456239]
[1740670337451,39.99549306,138.05,138.02,0.05456239]
[1740670337842,43.74899306,138.05,138.02,0.05456239]
[1740670338657,50.99949306,138.05,138.02,0.05456239]
[1740670338846,43.74899306,138.05,138.02,0.05456239]
[1740670339357,3.7535,138.05,138.02,0.05456239]
[1740670340650,3.7535,138.05,137.92,3.9304]
[1740670340852,3.80052019,138.05,137.92,3.9304]
[1740670341047,3.7535,138.05,137.92,3.9304]
[1740670341349,11.0038,138.05,137.98,7.2534]
[1740670341556,3.7535,138.05,137.92,3.9304]
[1740670341755,0.04844277,138.0,137.97,0.04893379]
[1740670341955,0.04844277,138.0,137.99,7.253]
[1740670342150,12.5,138.04,137.98,4.0699]
[1740670343052,12.5,138.04,138.0,7.2524]
[1740670343247,12.5,138.04,138.0,7.30145637]
[1740670343443,12.5,138.04,138.0,0.04905637]
[1740670343956,4.0647,138.09,138.0,0.04905637]
[1740670344147,12.5,138.08,138.03,7.2508]
[1740670344757,12.5,138.08,138.02,0.05509026]
[1740670345055,12.5,138.08,137.91,212.74715973]
[1740670345056,12.5,138.08,137.92,4.1226]
[1740670345256,1.33228645,138.07,137.96,7.2546]
[1740670345557,1.33228645,138.07,137.92,3.932]
[1740670345754,7.2531,138.0,137.94,7.2555]
[1740670345956,12.5,137.99,137.94,7.2555]
[1740670346257,0.04638793,137.98,137.95,7.3072855]
[1740670346953,0.04638793,137.98,137.95,0.0523855]
[1740670348854,0.04638793,137.98,137.97,7.2543]
[1740670349258,12.5,137.99,137.98,7.2538]
[1740670349556,12.5,137.99,137.96,4.0354]
[1740670349960,12.5,137.99,137.95,0.0523855]
[1740670352357,19.7534,137.99,137.95,0.0523855]
[1740670352561,12.5,137.99,137.95,0.0523855]
[1740670352958,12.5,137.99,137.86,79.88381094]
[1740670352959,34.24,137.99,137.86,79.88381094]
[1740670353162,12.5,137.99,137.87,7.2593]
[1740670353360,1.33330147,137.98,137.87,7.2593]
[1740670353665,7.2568,137.93,137.87,7.2592]
[1740670353859,12.5,137.92,137.84,29.40955973]
[1740670354058,0.05261664,137.91,137.89,0.05267997]
[1740670356256,0.05261664,137.91,137.9,7.258]
[1740670356454,0.05261664,137.91,137.89,0.05267997]
[1740670356863,0.05261664,137.91,137.89,7.31077997]
[1740670357058,0.05261664,137.91,137.89,0.05267997]
[1740670357563,197.1,137.93,137.89,0.05267997]
[1740670357764,12.5,137.97,137.89,0.05267997]
[1740670359058,19.7546,137.97,137.89,0.05267997]
[1740670359564,7.2552,137.96,137.89,0.05267997]
[1740670359763,12.5,137.97,137.89,0.05267997]
[1740670361161,7.2565,137.93,137.89,0.05267997]
[1740670361356,12.5,137.97,137.89,0.05267997]
[1740670362157,8.0803,137.98,137.89,0.05267997]
[1740670362356,12.5,137.97,137.93,7.256]
[1740670362668,12.5,137.97,137.92,0.04656109]
[1740670362862,12.5,137.97,137.84,11.6624]
[1740670363163,12.5,137.97,137.93,0.05479578]
[1740670363361,12.5,137.97,137.85,14.5211]
[1740670363566,201.058,138.01,137.94,0.0497343]
[1740670363860,12.5,138.0,137.96,7.2545]
[1740670364066,12.5,138.0,137.84,11.6624]
[1740670364271,12.5,138.0,137.96,0.05146476]
[1740670364564,12.5,138.0,137.97,7.254]
[1740670364766,12.5,138.0,137.97,0.04588837]
[1740670365866,12.5,138.0,137.97,7.29998837]
[1740670366068,12.5,138.0,137.97,0.04588837]
[1740670366758,12.5,138.0,137.87,195.0]
[1740670366961,12.5,138.0,137.84,11.6624]
[1740670367161,4.0593,137.99,137.84,11.6624]
[1740670367365,7.2548,137.96,137.89,7.2581]
[1740670367770,4.0593,137.99,137.84,91.54621094]
[1740670367963,7.2563,137.94,137.87,7.2593]
[1740670368163,12.5,137.93,137.91,0.05404897]
[1740670368362,12.5,137.93,137.84,83.63361094]
[1740670368567,4.0593,137.92,137.84,83.63361094]